Cogmind - Beta 11.1 @@@ ROGUE MODE // 2022.06.08 @ 13:44:39 Player: Jamuson Result: Core destroyed Performance ------------- Evolutions (1) 500 Regions Visited (2) 400 Robots Destroyed (34) 170 Value Destroyed (1063) 1063 Prototype IDs (0) 0 Alien Tech Used (0) 0 Bonus (16) 16 TOTAL SCORE: 2149 Bonus ------- High Alert Combat Kills 16 Cogmind --------- Core Integrity 0/400 Matter 221/300 Energy 85/100 System Corruption 0% Temperature Critical (663) Movement Rolling (120) Ox2 Location -9/Materials Parts ------- > --- POWER (1) -------- Ion Engine > --- PROPULSION (3) --- Wheel Compact Wheel Armored Wheel > --- UTILITY (2) ------ Huge Storage Unit Light Armor Plating > --- WEAPON (3) ------- Medium Laser Beam Rifle Particle Gun > --- INVENTORY (25) --- Ion Engine Light Treads Light Treads Aluminum Leg Armored Wheel Small Storage Unit High-capacity Storage Unit Hardened Light Armor Plating Small Laser Heavy Assault Rifle Heavy Assault Rifle Heavy Assault Rifle Mini Grenade Launcher Peak State ------------ > --- POWER ------------ Ion Engine > --- PROPULSION ------- Wheel Compact Wheel Armored Wheel > --- UTILITY ---------- Huge Storage Unit Light Armor Plating > --- WEAPON ----------- Beam Rifle Particle Gun Heavy Assault Rifle > --- INVENTORY -------- Light Treads Light Treads Aluminum Leg Armored Wheel Small Storage Unit High-capacity Storage Unit Hardened Light Armor Plating Mini Grenade Launcher [Rating: 14] Favorites ----------- Power Light Ion Engine Engine Light Ion Engine Propulsion Armored Wheel Treads Light Treads Leg Aluminum Leg Wheel Armored Wheel Utility Huge Storage Unit Storage Huge Storage Unit Protection Light Armor Plating Weapon EM Pulse Gun Energy Gun EM Pulse Gun Ballistic Gun Assault Rifle Launcher Grenade Launcher Build | -11 -10 -9 ------- Run | Scr Mat Mat Slots Evolved 2 | . . 2 Power . | . . . Propulsion 1 | . . 1 Utility . | . . . Weapon 1 | . . 1 Parts Attached 31 | . 12 19 Power 3 | . 1 2 Engine 3 | . 1 2 Core . | . . . Reactor . | . . . Propulsion 9 | . 2 7 Treads 1 | . . 1 Leg 2 | . . 2 Wheel 6 | . 2 4 Hover . | . . . Flight . | . . . Utility 6 | . 4 2 Device . | . . . Storage 3 | . 3 . Processor . | . . . Hackware . | . . . Protection 3 | . 1 2 Artifact . | . . . Weapon 13 | . 5 8 Energy Gun 10 | . 3 7 Energy Cannon . | . . . Ballistic Gun 2 | . 1 1 Ballistic Cannon . | . . . Launcher 1 | . 1 . Special Weapon . | . . . Impact Weapon . | . . . Slashing Weapon . | . . . Piercing Weapon . | . . . Special Melee Weapon . | . . . Unidentified Prototypes . | . . . Parts Lost 9 | . 4 5 Power 1 | . . 1 Propulsion 1 | . . 1 Utility 2 | . 1 1 Weapon 5 | . 3 2 Highest Loss Streak 5 | . 2 5 To Critical Strikes . | . . . Average Slot Usage (%) 88 | . 90 86 Engine 12 | . 14 11 Treads 1 | . . 4 Leg 9 | . 16 . Wheel 18 | . 11 26 Storage 12 | . 14 11 Protection 6 | . 5 8 Energy Gun 22 | . 24 20 Ballistic Gun 3 | . 3 4 Naked Turns . | . . . Heaviest Build 97 | 11 91 97 Greatest Support 38 | 20 24 38 Greatest Overweight (x) 7 | . 3 7 Average Overweight (x) 1 | . . 2 Largest Inventory Capacity 25 | . 25 25 Average Capacity 18 | . 13 25 Most Carried 13 | . 11 13 Average Carried 9 | . 7 10 Final Capacity 25 | 8 25 25 Final Carried 13 | 6 11 13 Class Distribution -------------------- 85% | Mutant 11% | Scavenger-Tank Dominant Class ---------------- Mutant | -10/Materials Mutant | -9/Materials Resources | -11 -10 -9 ----------- Run | Scr Mat Mat Matter Collected 672 | 200 171 301 Remotely . | . . . Salvage Created 1378 | . 730 648 Parts 73 | . 39 34 Haulers Intercepted 1 | . 1 . Recyclers Shooed . | . . . Parts Field Recycled . | . . . Retrieved Matter . | . . . Parts Self-Destructed . | . . . Prevented . | . . . Kills | -11 -10 -9 ------- Run | Scr Mat Mat Combat Hostiles Destroyed 28 | . 15 13 Guns 23 | . 10 13 AOE 5 | . 5 . Classes Destroyed 7 | . 5 2 Worker 1 | . . 1 Hauler 1 | . 1 . Recycler 1 | . 1 . Watcher 3 | . 2 1 Swarmer 3 | . 3 . Grunt 21 | . 12 9 Sentry 4 | . . 4 Best Kill Streak 5 | . 5 4 Combat Bots Only 5 | . 5 4 Max Kills in Single Turn 2 | . 2 1 Gunslinging . | . . . Exploded 2 | . 2 . Melee . | . . . Uniques/NPCs Destroyed . | . . . Combat | -11 -10 -9 -------- Run | Scr Mat Mat Damage Taken 1708 | . 540 1168 Core 504 | . 74 430 Absorbed by Shields . | . . . Core Remaining (%) 85 | 100 70 . Volleys Fired 98 | . 49 49 Largest 3 | . 2 3 Hottest 171 | . 80 171 Shots Fired 199 | . 93 106 Gun 196 | . 90 106 Cannon . | . . . Launcher 3 | . 3 . Special . | . . . Kinetic 36 | . 13 23 Thermal 93 | . 10 83 Explosive 3 | . 3 . Electromagnetic 67 | . 67 . Robot Hit Streak 20 | . 7 20 Robot Miss Streak 6 | . 6 4 Penetration Max . | . . . Secondary Targets 2 | . 1 1 Max Gunslinging Chain 1 | . 1 1 Shots Hit Robots 128 | . 55 73 Core Hits 57 | . 28 29 Critical Kills . | . . . Critical Parts Destroyed . | . . . Critical Strikes 6 | . 1 5 Burn 5 | . . 5 Corrupt 1 | . 1 . Melee Attacks . | . . . Impact . | . . . Slashing . | . . . Piercing . | . . . Sneak Attacks . | . . . Combat Hostiles . | . . . Follow-up Attacks . | . . . Damage Inflicted 2068 | . 1003 1065 Guns 1831 | . 766 1065 Cannons . | . . . Explosions 237 | . 237 . Melee . | . . . Ramming . | . . . Kinetic 327 | . 91 236 Thermal 960 | . 131 829 Explosive 139 | . 139 . Electromagnetic 642 | . 642 . Impact . | . . . Slashing . | . . . Piercing . | . . . Highest Corruption . | . . . Average Corruption . | . . . Corruption Purged . | . . . Corruption Blocked . | . . . Overload Shots . | . . . Overflow Damage . | . . . Projectiles . | . . . Explosions . | . . . Melee . | . . . Knockbacks . | . . . Impact . | . . . Kinetic . | . . . Secondary . | . . . Self-Inflicted Damage 39 | . 39 . Shots 2 | . 2 . Rammed . | . . . Targets Rammed . | . . . Kicked . | . . . Crushed . | . . . Highest Temperature 795 | . 268 795 Average Temperature 139 | . 51 214 Received Heat Transfer 750 | . 252 498 Effects 22 | . . 22 Shutdowns 2 | . . 2 Energy Bleed 3 | . . 3 Interference 1 | . . 1 Matter Decay 2 | . . 2 Short Circuit 3 | . . 3 Damage (minor) 2 | . . 2 Damage (major) 4 | . . 4 Damage (core) 5 | . . 5 Siege Activations . | . . . Robots Corrupted . | . . . Combat Hostiles . | . . . Parts Fried 3 | . 3 . Impact Corruptions . | . . . Robots Melted . | . . . Combat Hostiles . | . . . Parts Melted 7 | . . 7 Heat Transferred 2683 | . 225 2458 Parts Sabotaged . | . . . Parts Stolen . | . . . Parts Stripped . | . . . Power Chain Reactions 2 | . 2 . Missiles Intercepted . | . . . Alert | -11 -10 -9 ------- Run | Scr Mat Mat Peak Influence 509 | . 509 396 Initial 151 | . . 151 Average 247 | . 237 259 Maximum Alert Level 2 | . 2 1 Low Security (%) 26 | . 22 32 Level 1 71 | . 75 67 Level 2 1 | . 2 . Level 3 . | . . . Level 4 . | . . . Level 5 . | . . . High Security . | . . . Max Security . | . . . Squads Dispatched 7 | . 5 2 Investigation 5 | . 3 2 Extermination . | . . . Reinforcement 2 | . 2 . Assault . | . . . Garrison . | . . . Intercept . | . . . Searches Triggered . | . . . Construction Impeded . | . . . Haulers Reinforced . | . . . Active Scanning Responses . | . . . Cargo Convoy Interrupts . | . . . Stealth | -11 -10 -9 --------- Run | Scr Mat Mat Distress Signals 4 | . 1 3 Communications Jammed . | . . . Distress Signals . | . . . Times Spotted 41 | . 23 18 Peak Tracking Total 5 | . 3 5 Tactical Retreats 2 | . 1 1 Traps | -11 -10 -9 ------- Run | Scr Mat Mat Traps Triggered 2 | . 1 1 Indirectly . | . . . Trap Hack Attempts . | . . . Triggered . | . . . Disarmed . | . . . Reprogrammed . | . . . Reused . | . . . Traps Extracted . | . . . Installed . | . . . Triggered . | . . . Machines | -11 -10 -9 ---------- Run | Scr Mat Mat Machines Disabled 3 | . 3 . Max in Single Turn 1 | . 1 . Machines Sabotaged . | . . . Garrisons Compromised . | . . . Overloaded Fab Kills . | . . . Hacking | -11 -10 -9 --------- Run | Scr Mat Mat Machines Accessed 10 | . 7 3 Terminals 8 | . 5 3 Fabricators . | . . . Repair Stations . | . . . Recycling Units 2 | . 2 . Scanalyzers . | . . . Garrison Access . | . . . Total Hacks 39 | . 22 17 Successful 22 | . 13 9 Failed 16 | . 8 8 Catastrophic 2 | . 1 1 Database Lockouts 1 | . 1 . Manual 27 | . 14 13 Terminals 37 | . 20 17 Fabricators . | . . . Repair Stations . | . . . Recycling Units 2 | . 2 . Scanalyzers . | . . . Garrison Access . | . . . Terminal Hacks 11 | . 6 5 Robot Analysis 5 | . 2 3 Terminal Index 2 | . 1 1 Locate Traps 2 | . 1 1 Hauler Manifests 1 | . 1 . Registered Components 1 | . 1 . Fabricator Hacks . | . . . Repair Station Hacks . | . . . Recycling Unit Hacks . | . . . Scanalyzer . | . . . Garrison Access Hacks . | . . . Unauthorized Hacks 11 | . 7 4 Terminals 9 | . 5 4 Botnet 7 | . 4 3 Operators 2 | . 1 1 Fabricators . | . . . Repair Stations . | . . . Recycling Units 2 | . 2 . Tunnel 2 | . 2 . Scanalyzers . | . . . Garrison Access . | . . . Data Cores Recovered . | . . . Used . | . . . Hacking Detections 7 | . 4 3 Full Trace Events 1 | . . 1 Feedback Events . | . . . Feedback Blocked . | . . . Robot Schematics Acquired . | . . . Robots Built . | . . . Authchips . | . . . Time . | . . . Total Robot Build Rating . | . . . Part Schematics Acquired . | . . . Parts Built . | . . . Authchips . | . . . Time . | . . . Total Part Build Rating . | . . . Parts Repaired . | . . . Time . | . . . Parts Recycled . | . . . Recycled Matter . | . . . Retrieved Matter . | . . . Retrieved Components . | . . . Parts Scanalyzed . | . . . Part Schematics Acquired . | . . . Parts Damaged . | . . . Bothacking | -11 -10 -9 ------------ Run | Scr Mat Mat Used RIF Installer . | . . . Robots Hacked . | . . . Non-combat . | . . . Combat . | . . . Robot Hacks Applied . | . . . Relay Couplers Released . | . . . Fabnet Peak Effective % . | . . . Robots Rewired . | . . . Allies Hacked . | . . . Hacks Repelled . | . . . Allies | -11 -10 -9 -------- Run | Scr Mat Mat Total Allies . | . . . Largest Group . | . . . Highest-Rated Group . | . . . Highest-Rated Ally . | . . . Total Orders . | . . . Ally Attacks . | . . . Total Damage . | . . . Kills . | . . . Allies Corrupted . | . . . Allies Melted . | . . . Intel | -11 -10 -9 ------- Run | Scr Mat Mat Robot Analysis Total 5 | . 2 3 Derelict Logs Recovered . | . . . Drone Launches . | . . . Drone Recoveries . | . . . Exploration | -11 -10 -9 ------------- Run | Scr Mat Mat Turns Passed 1513 | . 850 663 Spaces Moved 837 | 1 518 318 Core . | . . . Treads 4 | . . 4 Legs 308 | 1 307 . Wheels 525 | . 211 314 Hover . | . . . Flight . | . . . Fastest Speed 90 | 120 90 120 Average Speed 125 | 120 121 131 Slowest Speed 480 | 120 135 480 Overloaded Moves . | . . . Propulsion Burnouts . | . . . Robots Hopped . | . . . Cave-ins Triggered . | . . . Exploration Rate (%) 47 | 2 98 43 Regions Visited 2 Branch Regions . Pre-discovered Areas 2 | . 2 . Known Exits Taken . | . . . Unknown Exits Taken 2 | 1 1 . Scrap Searched . | . . . Spaces Dug . | . . . Terrain Destroyed 31 | . 31 . Melee . | . . . Projectile . | . . . AOE 31 | . 31 . Terrain Rammed . | . . . Walls Destroyed . | . . . Machines Disabled . | . . . Actions | -11 -10 -9 --------- Run | Scr Mat Mat Total 1113 | . 644 469 Wait 124 | . 54 70 Move 835 | . 517 318 Hop . | . . . Pick Up 10 | . 6 4 Fast Attach 17 | . 5 12 Attach 7 | . 3 4 Detach 2 | . 1 1 Swap 7 | . 4 3 Drop 13 | . 5 8 Fire 98 | . 49 49 Melee . | . . . Ram . | . . . Kick . | . . . Crush . | . . . Escape Stasis . | . . . Rewire . | . . . Trap . | . . . Miscellaneous . | . . . Route ------- -11/Scrapyard -10/Materials (discovered 5 exits: *Mat x3 / [*Min x2]) -9/Materials (discovered 2 exits: [*Min x2]) History --------- Turn | Location | Event 1 | -11/Scrapyard | Discovered new exit (range 0) 1 | -11/Scrapyard | Entered Materials 115 | -10/Materials | Discovered new exit (range 7) 229 | -10/Materials | Discovered new exit (range 15) 282 | -10/Materials | Discovered new exit (range 16) 300 | -10/Materials | Build established: Mutant 404 | -10/Materials | Central database locked down 420 | -10/Materials | Discovered new exit (range 14) 833 | -10/Materials | Discovered new exit (range 9) 851 | -10/Materials | Entered another Materials area 851 | -9/Materials | Evolved 2 slots: Propulsion x1, Weapon x1 889 | -9/Materials | Discovered new exit (range 15) 1116 | -9/Materials | Core integrity fell below 50% 1140 | -9/Materials | Lost 5 parts (1p1n1u2w) 1364 | -9/Materials | Discovered new exit (range 15) 1505 | -9/Materials | Core integrity fell below 20% 1515 | -9/Materials | Core destroyed Last Messages --------------- 01493_ Y-45 Defender suffers critical hit (Burn). 01494_ K-01 Serf collects debris. 01496_ U-05 Engineer lays Concrete. 01500_ Hvy. Assault Rifle melted. 01500_ Beam Rifle melted. 01500_ Imp. Ion Engine melted. 01500_ Y-45 Defender destroyed. 01501_ Ion Engine broken. 01501_ Overheating: Short circuit. 01504_ Overheating: Med. Laser damaged (-50). 01504_ U-05 Engineer builds a Door. 01505_ Overheating: Core damaged (-64). 01505_ K-01 Serf collects debris. 01506_ Overheating: Energy bleed (-9). 01508_ K-01 Serf cleans the Terminal. 01512_ K-01 Serf collects debris. 01513_ Overheating: System interference. 01513_ Beam Rifle temporarily disabled. 01514_ Overheating: Matter decay (-69). 01515_ Overheating: Core damaged (-44). Map ----- +----------------------------------------------------+ | ??????????????????????????????# #????# """"" # | | ??????????????????????????????# #????# """"" # | | ??????????????????????????????# #????# """"" # | | ???????????????????????????#### #????# """ # | | ??????????????????????????##!! #????# # | | ??????????????????????????#! ##########+##### | | ??????????????????????????#! | | ??????????????????????????#! | | ??????????????????????????#! | | ??????????????????????????##!!################ ### | | ???????????????????????????###???????????????# #?? | | ?????????????????????????????????????????????# #?? | | ?????????????????????????????????????????????# #?? | | ?????????????????????????????????????????##??#/### | | ?????????????????????????????????????????# ?? # | | ????????????????????????????#####????????# ? # | | ????????????????????????????# #????????# """"" # | | ????????????????????????????# #????????# """"" # | | ????????????????????????????+ +????????# """"" # | | ??????????????###???????????# #????????# """"" # | | ??????????????#!! ########+## #????????# """"" # | | ??????????????#!! #????????# """"" # | | ??????????????#** ########## """"" # | | ??????????????#** [! ##""|"!""# # | | ??????????????#== ! ## "|"! #=%= # | | ??????????????#== @ ! ## ##+###### | | ??????????????##### "T" k % % % | | ??????????????????# ! g < | | ??????????????????# !% u | | ??????????????????##+##########+## ##+###### | | ?????????????????? ?????????? #########???????? | | ???????????????? ??????????? [#???????????????? | | ???????????????# ???????????? #???????????????? | | ???????????????# ????????????? ????????????????? | | ???????????????#?????????????? ????????????????? | | ??????????????????????????????" ????????????????? | | ?????????????????????????????"" #???????????????? | | ?????????????????????????????"" #???????????????? | | ??????????????????????????????? #???????????????? | | ??????????????????????????????? ????????????????? | | ??????????????????????????????? ????????????????? | | ??????????????????????????????? ????????????????? | | ?????????????????????????????????????????????????? | | ?????????????????????????????????????????????????? | | ?????????????????????????????????????????????????? | | ?????????????????????????????????????????????????? | | ?????????????????????????????????????????????????? | | ?????????????????????????????????????????????????? | | ?????????????????????????????????????????????????? | | ?????????????????????????????????????????????????? | +----------------------------------------------------+ Best States ------------- Heat Dissipation 28 Energy Generation 10 Energy Capacity 250 Matter Stores 300 Matter Capacity 300 Sight Range 16 Terrain Scan Density 10 Armor Coverage 150 Evasion (%) 55 Recoil Reduction 1 Item Schematics ----------------- None Robot Schematics ------------------ None Fabricated ------------ Nothing Alien Tech Used ----------------- None Achievements -------------- None Challenges ------------ None Game ------ Seed LongswordLinkedSuite Manual? 0 Play Time 00:16:22 Cumulative 224.6 hours Start 2022.06.08 @ 13:22:11 End 2022.06.08 @ 13:44:39 Sessions 1 Manual Loads 0 Difficulty Rogue Special Mode None Game No. 107 Rogue 100 Adventurer 0 Explorer 7 Win Type - Total 1 Types 0/0/1/0/0/0/0/0/0 Lore% 63 Gallery% 63 Achievement% 51 Wizard Run 0 Options --------- ASCII 0 Keyboard 0 Movement Mouse Keybinds 0 Fullscreen 1 Font 18/SmallcapsGlow Map View 76x50 Tactical HUD 1 Map Filters NONE Filters NONE Steam 1 RUN: f19eb7ec-2647-4a98-b58f-23034990ff20